Cogmind - Beta 9.6 @@@ ROGUE MODE // 2020.07.05 @ 19:27:59 Player: Kenzurith Result: Destroyed by B-75 Beast with Magnetic Acceleration Cannon Performance ------------- Evolutions (4) 2000 Regions Visited (19) 3800 Robots Destroyed (219) 1095 Value Destroyed (8853) 8853 Prototype IDs (218) 4360 Alien Tech Used (0) 0 Bonus (7423) 7423 TOTAL SCORE: 27531 Bonus ------- High Alert Combat Kills 2462 Follower Combat Kills 489 Entered Garrisons 200 Used RIF Installer 500 Met Data Miner 300 Used Data Conduit 3000 Pursued by Intercept 500 Friendly Fire -28 Cogmind --------- Core Integrity 0/850 Matter 60/300 Energy 76/100 System Corruption 9% Temperature Cool (105) Movement Walking (180) Ox2 Location -6/Extension Parts ------- > --- POWER (1) -------- (None) > --- PROPULSION (4) --- Carbon-fiber Leg Carbon-fiber Leg > --- UTILITY (8) ------ Improved Cooling System High-capacity Storage Unit High-capacity Storage Unit Advanced Signal Interpreter Advanced Targeting Computer Experimental Targeting Computer Improved Armor Integrity Analyzer > --- WEAPON (2) ------- Gauss Rifle Mini Assault Cannon > --- INVENTORY (20) --- Improved Deuterium Engine Experimental Heat Sink High-capacity Storage Unit Advanced Sensor Array Heavy Laser Heavy Laser Heavy Missile Launcher Long-range Missile Launcher Long-range Missile Launcher Improved Plasma Cutter Molecular Deconstructor Ripper Peak State ------------ > --- POWER ------------ Improved Deuterium Engine > --- PROPULSION ------- Heavy Treads Heavy Treads > --- UTILITY ---------- Experimental Heat Sink High-capacity Storage Unit High-capacity Storage Unit High-capacity Storage Unit Advanced Signal Interpreter Damper Plating > --- WEAPON ----------- Molecular Deconstructor > --- INVENTORY -------- Antimatter Reactor Heavy Treads Heavy Treads Improved Cooling System Large Matter Pod Advanced Sensor Array Improved Armor Integrity Analyzer Hardened Heavy Armor Plating Hardened Heavy Armor Plating Layered Medium Armor Plating Layered Medium Armor Plating Heavy Reactive Plating Hypervelocity Gauss Rifle Linked Autogun Mini Assault Cannon Mini Assault Cannon Long-range Missile Launcher Long-range Missile Launcher Remote Datajack Improved Plasma Cutter Spear [Rating: 90] Favorites ----------- Power Antimatter Reactor Engine Heavy Ion Engine Power Core Light Nuclear Core Reactor Antimatter Reactor Propulsion Light Treads Treads Light Treads Leg Carbon-fiber Leg Wheel Armored Huge Wheel Flight Unit Cesium-ion Thruster Utility High-capacity Storage Unit Device Advanced Sensor Array Storage High-capacity Storage Unit Processor Advanced Signal Interpreter Hackware Relay Coupler [NC] Protection Hardened Heavy Armor Plating Weapon Mini Assault Cannon Energy Gun Small Laser Energy Cannon Advanced Beam Cannon Ballistic Gun Minigun Ballistic Cannon Mini Assault Cannon Launcher Mini Grenade Launcher Special Weapon Improved Plasma Cutter Piercing Weapon Spear Special Melee Weapon Improved Datajack Build | -11 -10 -10 -9 -9 -9 -8 -8 -8 -7 -7 -7 -7 -7 -7 -6 -6 -6 -6 -6 ------- Run | Scr Mat Min Mat Min Exi Min Mat Gar Fac Was Fac Low Low Dat Pro Fac Was Fac Ext Slots Evolved 8 | . . . 2 . . . 2 . 2 . . . . . . 2 . . . Power . | . . . . . . . . . . . . . . . . . . . . Propulsion 2 | . . . . . . . 1 . . . . . . . . 1 . . . Utility 6 | . . . 2 . . . 1 . 2 . . . . . . 1 . . . Weapon . | . . . . . . . . . . . . . . . . . . . . Parts Attached 331 | . 9 . 26 15 3 . 38 18 40 17 16 8 7 7 5 13 17 64 28 Power 27 | . . . 2 2 . . 3 4 3 3 . . . . . . 2 7 1 Engine 14 | . . . 2 2 . . 2 2 2 . . . . . . . . 3 1 Core 4 | . . . . . . . 1 2 1 . . . . . . . . . . Reactor 9 | . . . . . . . . . . 3 . . . . . . 2 4 . Propulsion 83 | . 4 . 7 3 . . 18 8 6 4 1 2 . . . 5 4 6 15 Treads 55 | . 4 . 7 1 . . 14 5 3 4 1 2 . . . 5 4 5 . Leg 21 | . . . . 2 . . 2 3 . . . . . . . . . . 14 Wheel 5 | . . . . . . . 1 . 3 . . . . . . . . . 1 Hover . | . . . . . . . . . . . . . . . . . . . . Flight 2 | . . . . . . . 1 . . . . . . . . . . 1 . Utility 113 | . 3 . 9 1 3 . 11 . 8 1 9 2 4 2 5 3 6 35 11 Device 41 | . . . 4 1 . . . . 1 . 4 1 2 2 3 2 2 14 5 Storage 18 | . 3 . 5 . 3 . 3 . 1 . 1 . . . . . . 1 1 Processor 8 | . . . . . . . 1 . 2 . . . . . . . . 2 3 Hackware 2 | . . . . . . . . . . 1 . . . . . . 1 . . Protection 44 | . . . . . . . 7 . 4 . 4 1 2 . 2 1 3 18 2 Artifact . | . . . . . . . . . . . . . . . . . . . . Weapon 108 | . 2 . 8 9 . . 6 6 23 9 6 4 3 5 . 5 5 16 1 Energy Gun 1 | . . . 1 . . . . . . . . . . . . . . . . Energy Cannon 9 | . 1 . 4 4 . . . . . . . . . . . . . . . Ballistic Gun 19 | . 1 . 3 2 . . 1 . 6 . . . . . . . . 5 1 Ballistic Cannon 37 | . . . . 1 . . 5 4 8 . 4 1 1 3 . 2 2 6 . Launcher 12 | . . . . 2 . . . 2 4 . . 2 . 1 . 1 . . . Special Weapon 12 | . . . . . . . . . . 3 . . 1 . . 2 3 3 . Impact Weapon . | . . . . . . . . . . . . . . . . . . . . Slashing Weapon . | . . . . . . . . . . . . . . . . . . . . Piercing Weapon 12 | . . . . . . . . . 3 2 2 1 1 1 . . . 2 . Special Melee Weapon 6 | . . . . . . . . . 2 4 . . . . . . . . . Unidentified Prototypes 7 | . . . 3 . . . 1 . 1 . . . 1 . . . . 1 . Parts Lost 40 | . . . 4 . . . 4 2 2 . . . . . . 1 . 16 11 Power 7 | . . . 1 . . . 1 . 1 . . . . . . . . 3 1 Propulsion 13 | . . . 2 . . . . 1 . . . . . . . . . 5 5 Utility 13 | . . . . . . . 2 . 1 . . . . . . 1 . 5 4 Weapon 7 | . . . 1 . . . 1 1 . . . . . . . . . 3 1 Highest Loss Streak 10 | . . . 2 . . . 2 1 1 . . . . . . 1 . 6 10 Average Slot Usage (%) 90 | . 93 100 98 100 100 100 98 99 97 91 86 83 81 80 83 85 74 76 86 Engine 4 | . 14 14 11 11 11 11 5 3 6 . . . . . . . . 1 4 Reactor 2 | . . . . . . . . . . 5 7 7 7 7 7 6 6 4 . Treads 14 | . 26 28 22 11 . . 22 13 16 8 15 14 15 15 15 19 17 12 . Leg 3 | . 1 . . 10 22 22 4 12 . . . . . . . . . . 17 Device 7 | . . . 10 11 11 11 6 . 7 7 6 6 6 7 6 12 2 10 14 Storage 24 | . 22 28 32 33 33 33 26 27 23 23 23 23 23 23 23 20 20 19 10 Processor 7 | . . . . . . . 1 9 15 15 9 7 7 7 7 6 6 6 20 Protection 5 | . . . . . . . 8 9 7 . 7 7 7 7 7 5 6 6 1 Energy Cannon 1 | . 1 14 10 10 11 11 1 . . . . . . . . . . . . Ballistic Gun 2 | . 14 14 10 8 . . . . 1 . . . . . . . . 1 . Ballistic Cannon 9 | . . . . 2 11 11 16 17 11 . 14 12 9 5 15 12 . 9 13 Naked Turns . | . . . . . . . . . . . . . . . . . . . . Heaviest Build 169 | 11 41 41 63 67 113 113 131 123 124 116 165 147 165 146 165 147 169 167 86 Greatest Support 140 | 20 40 40 40 40 30 30 60 63 66 93 93 93 93 93 93 123 140 140 100 Greatest Overweight (x) 9 | . 1 1 1 4 3 3 2 8 4 4 1 2 1 2 2 2 2 9 8 Average Overweight (x) 1 | . . 1 . 1 2 3 1 2 1 1 1 1 1 1 1 1 1 . 1 Largest Inventory Capacity 28 | 6 16 16 22 22 28 28 28 28 28 28 28 28 28 28 28 28 28 28 20 Average Capacity 25 | 6 11 16 21 22 22 28 27 28 28 28 28 28 28 28 28 28 28 27 17 Most Carried 28 | 6 16 16 22 22 25 27 28 28 28 28 28 28 28 28 28 28 28 28 20 Average Carried 25 | 6 9 16 20 21 22 25 27 27 27 27 27 28 27 27 27 27 27 25 16 Final Capacity 28 | 6 16 16 22 22 28 28 28 28 28 28 28 28 28 28 28 28 28 12 20 Final Carried 28 | 6 16 16 22 22 25 27 28 28 28 28 28 28 28 28 28 27 28 12 13 Class Distribution -------------------- 92% | Hauler-Mutant 6% | Mutant Dominant Class ---------------- Mutant | -10/Materials Mutant | -10/Mines Hauler-Mutant | -9/Materials Hauler-Mutant | -9/Mines Hauler-Mutant | -9/Exiles Hauler-Mutant | -8/Mines Hauler-Mutant | -8/Materials Hauler-Mutant | -8/Garrison Hauler-Mutant | -7/Factory Hauler-Mutant | -7/Waste Hauler-Mutant | -7/Factory Hauler-Mutant | -7/Lower Caves Hauler-Mutant | -7/Lower Caves Hauler-Mutant | -7/Data Miner Hauler-Mutant | -6/Proximity Caves Hauler-Mutant | -6/Factory Hauler-Mutant | -6/Waste Hauler-Mutant | -6/Factory Hauler-Mutant | -6/Extension Resources | -11 -10 -10 -9 -9 -9 -8 -8 -8 -7 -7 -7 -7 -7 -7 -6 -6 -6 -6 -6 ----------- Run | Scr Mat Min Mat Min Exi Min Mat Gar Fac Was Fac Low Low Dat Pro Fac Was Fac Ext Matter Collected 8990 | 181 133 39 560 280 . 50 892 419 815 488 236 432 366 219 245 106 526 2380 623 Remotely . | . . . . . . . . . . . . . . . . . . . . Salvage Created 11405 | . 472 39 856 188 . 128 1050 298 939 2100 94 102 71 111 94 189 1671 2490 513 Parts 470 | . 22 7 43 17 . 4 55 19 54 57 7 9 6 . 1 12 45 88 24 Haulers Intercepted 5 | . 2 . 1 . . . 1 . 1 . . . . . . . . . . Recyclers Shooed 10 | . 5 . . . . . 2 . . . . . . . . . . 2 1 Parts Field Recycled . | . . . . . . . . . . . . . . . . . . . . Retrieved Matter . | . . . . . . . . . . . . . . . . . . . . Parts Self-Destructed 14 | . . . . . . . . . . . . 8 5 . 1 . . . . Prevented . | . . . . . . . . . . . . . . . . . . . . Kills | -11 -10 -10 -9 -9 -9 -8 -8 -8 -7 -7 -7 -7 -7 -7 -6 -6 -6 -6 -6 ------- Run | Scr Mat Min Mat Min Exi Min Mat Gar Fac Was Fac Low Low Dat Pro Fac Was Fac Ext Combat Hostiles Destroyed 174 | . 4 3 12 10 . 1 23 14 23 6 3 4 4 4 3 3 5 43 9 Melee 6 | . . . . . . . . . . 2 . . . . . . . 4 . Guns 40 | . 4 . 4 3 . . 2 . 6 . . . . . . . . 21 . Cannons 90 | . . 3 8 3 . 1 21 5 7 4 3 . 2 2 3 1 1 17 9 AOE 33 | . . . . 4 . . . 9 10 . . 4 2 2 . 2 . . . Classes Destroyed 17 | . 5 1 1 . . 1 3 . 2 1 . 1 . . . . . 1 1 Worker 6 | . 1 . . . . . 1 . 1 . . . . . . 3 . . . Builder 9 | . . . . . . . 2 . 2 . . . . . . 2 . 1 2 Hauler 5 | . 2 . 1 . . . 1 . 1 . . . . . . . . . . Recycler 19 | . 2 . 4 . . 1 5 . 3 . . . . . . 1 . 2 1 Mechanic 1 | . . . . . . . . . 1 . . . . . . . . . . Watcher 4 | . 1 . . . . . 2 . . . . . . . . . . 1 . Swarmer 46 | . . 3 4 7 . . 9 3 10 . . 4 . . . 3 . 3 . Saboteur 2 | . . . . . . . . . . . . . . . . . . 2 . Grunt 58 | . 4 . 3 3 . . 6 8 8 . . . 2 . . . . 21 3 Brawler 9 | . . . . . . . 1 . 1 . . . 1 . 1 . . 5 . Duelist 6 | . . . . . . . 1 2 . . . . . . . . . 2 1 Sentry 16 | . . . 5 . . . 6 . . . 1 . . . 1 . . 1 2 Hunter 5 | . . . . . . 1 . 1 1 . . . . . . . . 1 1 Programmer 10 | . . . . . . . . . 3 . 2 . 1 . 1 . . 2 1 Behemoth 1 | . . . . . . . . . . . . . . . . . . . 1 Compactor 11 | . . . . . . . . . . 6 . . . . . . 5 . . Enhanced Grunt 4 | . . . . . . . . . . . . . . 4 . . . . . Tracker 3 | . . . . . . . . . . . . . . . . . . 3 . Combat Programmer 3 | . . . . . . . . . . . . . . . . . . 3 . Samaritan 1 | . . . . . . . . . . . . 1 . . . . . . . Best Kill Streak 13 | . 3 3 8 4 . 1 5 6 13 2 2 4 3 3 2 8 1 6 4 Combat Bots Only 8 | . 2 3 4 4 . 1 4 6 8 2 2 4 3 3 2 3 1 6 4 Max Kills in Single Turn 4 | . 1 1 1 3 . 1 2 3 3 1 1 4 1 1 1 3 1 1 2 Gunslinging . | . . . . . . . . . . . . . . . . . . . . Exploded 4 | . . . . 3 . . . 3 3 . . 4 1 1 . 2 . . . Melee 1 | . . . . . . . . . . 1 . . . . . . . 1 . Uniques/NPCs Destroyed . | . . . . . . . . . . . . . . . . . . . . Combat | -11 -10 -10 -9 -9 -9 -8 -8 -8 -7 -7 -7 -7 -7 -7 -6 -6 -6 -6 -6 -------- Run | Scr Mat Min Mat Min Exi Min Mat Gar Fac Was Fac Low Low Dat Pro Fac Was Fac Ext Damage Taken 16520 | . 188 79 798 205 . 196 1445 827 1277 . 271 175 60 709 348 136 . 7844 1962 Core 1451 | . 21 10 94 34 . 33 97 24 123 . 24 50 . 45 22 . . 591 283 Absorbed by Shields 213 | . . . . . . . . 72 . . . . . . . . . . 141 Reduced by Siege Mode 346 | . . . . . . . . . . . . . . 85 18 . . 243 . Core Remaining (%) 77 | 100 . 87 . . . 59 . 78 . . . . . . 62 . . . . Volleys Fired 677 | . 45 6 53 19 . 5 79 28 46 34 18 2 11 17 12 9 61 191 41 Largest 2 | . 2 2 2 2 . 2 2 2 2 1 2 2 2 2 2 2 1 2 2 Hottest 107 | . 60 80 85 107 . 107 107 87 96 20 96 96 96 96 96 96 30 96 96 Shots Fired 1088 | . 89 12 106 35 . 10 158 48 82 34 30 3 17 28 24 10 61 258 83 Gun 327 | . 89 6 53 15 . . 11 . 31 . . . . . . . . 121 1 Cannon 629 | . . 6 53 17 . 10 147 43 45 . 30 2 13 21 24 8 . 128 82 Launcher 27 | . . . . 3 . . . 5 6 . . 1 4 7 . 1 . . . Special 105 | . . . . . . . . . . 34 . . . . . 1 61 9 . Kinetic 814 | . 45 6 53 20 . 5 136 43 76 . 30 2 13 21 24 8 . 249 83 Thermal 218 | . 44 6 53 12 . 5 22 . . 34 . . . . . . 42 . . Explosive 27 | . . . . 3 . . . 5 6 . . 1 4 7 . 1 . . . Electromagnetic . | . . . . . . . . . . . . . . . . . . . . Robot Hit Streak 56 | . 11 4 20 3 . 3 10 6 10 8 7 8 12 12 17 21 14 56 11 Robot Miss Streak 8 | . 3 5 3 4 . 1 5 5 8 3 2 . 1 1 2 2 2 3 2 Penetration Max 2 | . . . . . . . 1 . . . . . . . . . . 2 . Secondary Targets 1 | . . . . 1 . . . . . . . . . . . . . . . Max Gunslinging Chain 1 | . . . . 1 . . . . . . . . . . . . . . . Shots Hit Robots 859 | . 67 4 77 14 . 6 112 35 60 59 17 1 11 25 19 7 50 229 66 Core Hits 479 | . 23 3 23 12 . 3 64 44 63 15 7 5 10 22 6 12 5 136 26 Critical Hits 66 | . 1 . . 2 . . 4 1 2 9 2 . . 2 . . 11 28 4 Critical Kills 16 | . . . . . . . 2 . 1 4 . . . . . . 1 5 3 Critical Parts Destroyed 28 | . . . . 2 . . 2 1 1 2 2 . . 1 . . 1 16 . Melee Attacks 88 | . . . . . . . . . 9 34 18 1 . 1 . . . 25 . Impact . | . . . . . . . . . . . . . . . . . . . . Slashing . | . . . . . . . . . . . . . . . . . . . . Piercing 78 | . . . . . . . . . 8 25 18 1 . 1 . . . 25 . Sneak Attacks 34 | . . . . . . . . . 4 28 . . . 1 . . . 1 . Combat Hostiles 28 | . . . . . . . . . . 28 . . . . . . . . . Follow-up Attacks . | . . . . . . . . . . . . . . . . . . . . Damage Inflicted 24449 | . 623 53 1402 491 . 131 2427 1382 2425 1482 534 299 787 1506 579 1433 712 6278 1905 Guns 4723 | . 623 . 567 99 . . 281 . 454 . . . . . . . . 2675 24 Cannons 10956 | . . 53 835 177 . 113 2146 557 553 . 534 26 224 463 579 202 . 2613 1881 Explosions 5169 | . . . . 215 . . . 825 1099 . . 273 563 963 . 1231 . . . Melee 2331 | . . . . . . . . . 319 1058 . . . 80 . . . 874 . Ramming 134 | . . . . . . 18 . . . . . . . . . . . 116 . Kinetic 13847 | . 215 . 567 151 . 52 2077 557 1007 . 534 26 224 463 579 202 . 5288 1905 Thermal 2968 | . 408 53 835 125 . 61 350 . . 424 . . . . . . 712 . . Explosive 5169 | . . . . 215 . . . 825 1099 . . 273 563 963 . 1231 . . . Electromagnetic . | . . . . . . . . . . . . . . . . . . . . Impact . | . . . . . . . . . . . . . . . . . . . . Slashing . | . . . . . . . . . . . . . . . . . . . . Piercing 2331 | . . . . . . . . . 319 1058 . . . 80 . . . 874 . Highest Corruption 9 | . . . . . . . . . 1 1 4 4 4 4 4 . 3 9 9 Average Corruption 3 | . . . . . . . . . 1 1 1 4 4 4 4 . 2 5 9 Corruption Purged . | . . . . . . . . . . . . . . . . . . . . Effects 229 | . . . . . . . . . 4 7 11 31 22 12 15 . 10 80 37 Message Errors 50 | . . . . . . . . . . 4 2 11 1 3 4 . 1 15 9 Matter Fused 41 | . . . . . . . . . . . 1 10 4 1 3 . . 13 9 Heat Flow Errors 21 | . . . . . . . . . . . 1 5 4 . . . 2 9 . Energy Discharges 37 | . . . . . . . . . 2 2 3 3 7 2 3 . 1 11 3 Parts Rejected 2 | . . . . . . . . . . . . . . . . . . 1 1 Data Loss (minor) 34 | . . . . . . . . . 2 1 4 2 5 3 3 . 1 8 5 Data Loss (major) 3 | . . . . . . . . . . . . . . . . . . 1 2 Misfires 5 | . . . . . . . . . . . . . . . . . . 3 2 Targeting Errors 32 | . . . . . . . . . . . . . 1 3 2 . 5 16 5 Weapon Failures 4 | . . . . . . . . . . . . . . . . . . 3 1 Overload Shots . | . . . . . . . . . . . . . . . . . . . . Overflow Damage 402 | . . . . 5 . . 40 1 26 12 48 . . 28 45 152 . 35 10 Projectiles 228 | . . . . . . . 40 . 20 . 48 . . . 45 30 . 35 10 Explosions 162 | . . . . 5 . . . 1 6 . . . . 28 . 122 . . . Melee 12 | . . . . . . . . . . 12 . . . . . . . . . Knockbacks 104 | . . . . 1 . . 25 17 5 . 5 . 1 . 2 3 . 37 8 Impact 1 | . . . . . . . . . . . . . . . . . . 1 . Kinetic 90 | . . . . 1 . . 22 12 4 . 5 . 1 . 2 3 . 34 6 Secondary 13 | . . . . . . . 3 5 1 . . . . . . . . 2 2 Self-Inflicted Damage 359 | . . . . 28 . . . 103 165 . . 63 . . . . . . . Shots 10 | . . . . 1 . . . 4 4 . . 1 . . . . . . . Rammed 16 | . . . . . . . . . . . . . . . . . . 16 . Targets Rammed 17 | . . . . . . 1 . . . . . . . . . . . 16 . Kicked 1 | . . . . . . 1 . . . . . . . . . . . . . Crushed . | . . . . . . . . . . . . . . . . . . . . Highest Temperature 306 | . 108 160 241 40 . . 227 221 108 . 303 209 270 . 222 . 217 241 306 Average Temperature 72 | . 29 78 22 14 . . 82 92 35 . 123 84 93 . 90 . 65 54 161 Received Heat Transfer 4077 | . 102 . 219 21 . 81 558 228 198 . 54 . 9 96 90 9 . 2166 246 Effects 4 | . . . . . . . 1 . . . 2 . 1 . . . . . . Energy Bleed 3 | . . . . . . . 1 . . . 1 . 1 . . . . . . Interference 1 | . . . . . . . . . . . 1 . . . . . . . . Siege Activations 18 | . . . . . . . . . . . 1 1 1 2 1 1 . 11 . Total Turns 328 | . . . . . . . . . . . 10 3 2 41 29 5 . 238 . Longest Duration 35 | . . . . . . . . . . . 10 3 2 21 29 5 . 35 . Robots Corrupted . | . . . . . . . . . . . . . . . . . . . . Combat Hostiles . | . . . . . . . . . . . . . . . . . . . . Parts Fried . | . . . . . . . . . . . . . . . . . . . . Impact Corruptions 1 | . . . . . . . . . . . . . . . . . . . 1 Robots Melted . | . . . . . . . . . . . . . . . . . . . . Combat Hostiles . | . . . . . . . . . . . . . . . . . . . . Parts Melted 3 | . . . 2 1 . . . . . . . . . . . . . . . Heat Transferred 6327 | . 925 111 1702 222 . 111 629 . . 1110 . . . . . . 1517 . . Parts Sabotaged . | . . . . . . . . . . . . . . . . . . . . Parts Stolen . | . . . . . . . . . . . . . . . . . . . . Parts Stripped . | . . . . . . . . . . . . . . . . . . . . Power Chain Reactions . | . . . . . . . . . . . . . . . . . . . . Missiles Intercepted . | . . . . . . . . . . . . . . . . . . . . Alert | -11 -10 -10 -9 -9 -9 -8 -8 -8 -7 -7 -7 -7 -7 -7 -6 -6 -6 -6 -6 ------- Run | Scr Mat Min Mat Min Exi Min Mat Gar Fac Was Fac Low Low Dat Pro Fac Was Fac Ext Peak Influence 1463 | . 112 70 253 256 . 50 260 714 941 789 401 . . . . 468 1463 1300 949 Average Influence 417 | . 28 17 122 110 . 21 109 543 440 522 177 . . . . 40 836 959 712 Maximum Alert Level 4 | . . . 1 1 . . 1 3 3 3 2 . . . . 2 4 4 3 Low Security (%) 39 | 100 100 100 87 86 . 100 85 7 22 . 49 . . . . 95 13 . . Level 1 15 | . . . 12 13 . . 14 14 35 20 45 . . . . 1 6 . . Level 2 18 | . . . . . . . . 41 19 77 5 . . . . 2 30 4 46 Level 3 18 | . . . . . . . . 37 23 2 . . . . . . 3 64 53 Level 4 6 | . . . . . . . . . . . . . . . . . 46 31 . Level 5 . | . . . . . . . . . . . . . . . . . . . . High Security . | . . . . . . . . . . . . . . . . . . . . Max Security . | . . . . . . . . . . . . . . . . . . . . Squads Dispatched 33 | . 1 . . 1 . . 1 . 7 . 4 . . . . 1 . 15 3 Investigation 6 | . 1 . . 1 . . . . 1 . 1 . . . . . . 1 1 Extermination 6 | . . . . . . . . . 3 . 2 . . . . . . 1 . Reinforcement 6 | . . . . . . . . . 2 . 1 . . . . 1 . 1 1 Assault 9 | . . . . . . . . . 1 . . . . . . . . 7 1 Garrison 1 | . . . . . . . 1 . . . . . . . . . . . . Intercept 5 | . . . . . . . . . . . . . . . . . . 5 . Construction Impeded 4 | . . . . . . . . . 2 . . . . . . . . 1 1 Haulers Reinforced 1 | . . . . . . . . . . . . . . . . 1 . . . Stealth | -11 -10 -10 -9 -9 -9 -8 -8 -8 -7 -7 -7 -7 -7 -7 -6 -6 -6 -6 -6 --------- Run | Scr Mat Min Mat Min Exi Min Mat Gar Fac Was Fac Low Low Dat Pro Fac Was Fac Ext Distress Signals 12 | . . . 2 . . . 3 . . . . . . . . 1 . 4 2 Communications Jammed . | . . . . . . . . . . . . . . . . . . . . Distress Signals . | . . . . . . . . . . . . . . . . . . . . Times Spotted 302 | . 10 3 20 14 . 4 39 21 34 6 6 4 4 4 4 8 8 83 30 Peak Tracking Total 13 | . 2 3 5 4 . 3 5 7 7 1 2 4 3 3 3 6 3 13 7 Tactical Retreats 26 | . . . 2 4 . . 4 10 1 . 1 . . . . . 1 2 1 Traps | -11 -10 -10 -9 -9 -9 -8 -8 -8 -7 -7 -7 -7 -7 -7 -6 -6 -6 -6 -6 ------- Run | Scr Mat Min Mat Min Exi Min Mat Gar Fac Was Fac Low Low Dat Pro Fac Was Fac Ext Traps Triggered 20 | . . . . . . . 2 10 2 . . . . . . 1 . 2 3 Indirectly . | . . . . . . . . . . . . . . . . . . . . Trap Hack Attempts 2 | . . . . . . . . . 2 . . . . . . . . . . Triggered . | . . . . . . . . . . . . . . . . . . . . Disarmed . | . . . . . . . . . . . . . . . . . . . . Reprogrammed 1 | . . . . . . . . . 1 . . . . . . . . . . Reused . | . . . . . . . . . . . . . . . . . . . . Traps Extracted . | . . . . . . . . . . . . . . . . . . . . Installed . | . . . . . . . . . . . . . . . . . . . . Triggered 1 | . . . . . . . . . . . . . . . 1 . . . . Machines | -11 -10 -10 -9 -9 -9 -8 -8 -8 -7 -7 -7 -7 -7 -7 -6 -6 -6 -6 -6 ---------- Run | Scr Mat Min Mat Min Exi Min Mat Gar Fac Was Fac Low Low Dat Pro Fac Was Fac Ext Machines Disabled 35 | . . . . 1 . . 1 2 4 . . . 1 . . 24 . 1 1 Max in Single Turn 10 | . . . . 1 . . 1 1 1 . . . 1 . . 10 . 1 . Garrison Access 4 | . . . . . . . . . 2 . . . . . . . . 2 . Garrison Relay 2 | . . . . . . . . 2 . . . . . . . . . . . Energy Cycler 1 | . . . . . . . . . . . . . . . . . . . 1 Machines Sabotaged . | . . . . . . . . . . . . . . . . . . . . Garrisons Compromised . | . . . . . . . . . . . . . . . . . . . . Overloaded Fab Kills . | . . . . . . . . . . . . . . . . . . . . Fab Network Shutdowns 1 | . . . . . . . . . 1 . . . . . . . . . . Hacking | -11 -10 -10 -9 -9 -9 -8 -8 -8 -7 -7 -7 -7 -7 -7 -6 -6 -6 -6 -6 --------- Run | Scr Mat Min Mat Min Exi Min Mat Gar Fac Was Fac Low Low Dat Pro Fac Was Fac Ext Machines Accessed 49 | . 7 . 5 1 3 . 8 . 6 . 6 1 . 4 . 1 . 3 4 Terminals 27 | . 6 . 4 . . . 6 . 1 . 4 . . . . 1 . 1 4 Fabricators 2 | . . . . . . . . . 1 . 1 . . . . . . . . Repair Stations 1 | . . . . . . . . . 1 . . . . . . . . . . Recycling Units 1 | . 1 . . . . . . . . . . . . . . . . . . Scanalyzers 4 | . . . 1 . . . 1 . 1 . 1 . . . . . . . . Garrison Access 5 | . . . . . . . 1 . 2 . . . . . . . . 2 . Total Hacks 163 | . 18 . 15 1 32 . 19 . 16 . 20 1 . 25 . 1 . 6 9 Successful 115 | . 8 . 6 1 32 . 12 . 13 . 11 1 . 25 . . . 4 2 Failed 48 | . 10 . 9 . . . 7 . 3 . 9 . . . . 1 . 2 7 Catastrophic 13 | . 1 . . . . . 3 . 2 . 3 . . . . 1 . . 3 Database Lockouts . | . . . . . . . . . . . . . . . . . . . . Manual 63 | . 13 . 11 . . . 10 . 3 . 15 . 1 . . 2 . 2 6 Terminals 74 | . 17 . 13 . . . 14 . 2 . 16 . . . . 1 . 2 9 Fabricators 4 | . . . . . . . . . 2 . 2 . . . . . . . . Repair Stations 2 | . . . . . . . . . 2 . . . . . . . . . . Recycling Units 1 | . 1 . . . . . . . . . . . . . . . . . . Scanalyzers 14 | . . . 2 . . . 4 . 6 . 2 . . . . . . . . Garrison Access 9 | . . . . . . . 1 . 4 . . . . . . . . 4 . Terminal Hacks 76 | . 5 . 2 1 32 . 4 . . . 4 1 . 25 . . . . 2 Record 43 | . . . . . 32 . . . . . . . . 11 . . . . . Part Schematic 7 | . . . . . . . . . . . 1 . . 6 . . . . . Robot Schematic 5 | . . . . . . . . . . . . . . 5 . . . . . Robot Analysis 4 | . 2 . 1 . . . . . . . 1 . . . . . . . . Prototype ID Bank 3 | . . . . . . . . . . . . . . 3 . . . . . Open Door 3 | . . . . 1 . . . . . . . 1 . . . . . . 1 Branch Access Points 1 | . . . . . . . . . . . 1 . . . . . . . . Garrison Index 1 | . . . . . . . 1 . . . . . . . . . . . . Alert Level 2 | . 1 . . . . . 1 . . . . . . . . . . . . Unreport Threat 5 | . 1 . . . . . 2 . . . 1 . . . . . . . 1 Hauler Manifests 2 | . 1 . 1 . . . . . . . . . . . . . . . . Fabricator Hacks 4 | . . . . . . . . . 2 . 2 . . . . . . . . Load Schematic 2 | . . . . . . . . . 1 . 1 . . . . . . . . Build 2 | . . . . . . . . . 1 . 1 . . . . . . . . Repair Station Hacks 1 | . . . . . . . . . 1 . . . . . . . . . . Scan Component 1 | . . . . . . . . . 1 . . . . . . . . . . Recycling Unit Hacks . | . . . . . . . . . . . . . . . . . . . . Scanalyzer 14 | . . . 2 . . . 4 . 6 . 2 . . . . . . . . Insert Component 7 | . . . 1 . . . 2 . 3 . 1 . . . . . . . . Analyze 7 | . . . 1 . . . 2 . 3 . 1 . . . . . . . . Garrison Access Hacks 8 | . . . . . . . 1 . 3 . . . . . . . . 4 . Unlock Access 1 | . . . . . . . 1 . . . . . . . . . . . . Seal Access 4 | . . . . . . . . . 2 . . . . . . . . 2 . Coupler Status 3 | . . . . . . . . . 1 . . . . . . . . 2 . Unauthorized Hacks 12 | . 3 . 2 . . . 3 . 1 . 3 . . . . . . . . Terminals 11 | . 2 . 2 . . . 3 . 1 . 3 . . . . . . . . Track 1 | . . . . . . . . . . . 1 . . . . . . . . Botnet 9 | . 2 . 2 . . . 3 . . . 2 . . . . . . . . Disrupt 1 | . . . . . . . . . 1 . . . . . . . . . . Fabricators . | . . . . . . . . . . . . . . . . . . . . Repair Stations . | . . . . . . . . . . . . . . . . . . . . Recycling Units 1 | . 1 . . . . . . . . . . . . . . . . . . Tunnel 1 | . 1 . . . . . . . . . . . . . . . . . . Scanalyzers . | . . . . . . . . . . . . . . . . . . . . Garrison Access . | . . . . . . . . . . . . . . . . . . . . Data Cores Recovered . | . . . . . . . . . . . . . . . . . . . . Used . | . . . . . . . . . . . . . . . . . . . . Hacking Detections 33 | . 5 . 4 . . . 6 . 5 . 6 . . . . 1 . 2 4 Full Trace Events 5 | . . . 1 . . . . . 1 . 1 . . . . . . 1 1 Feedback Events 2 | . . . . . . . . . . . 1 . . . . . . 1 . Corruption 2 | . . . . . . . . . . . 1 . . . . . . 1 . Feedback Blocked . | . . . . . . . . . . . . . . . . . . . . Robot Schematics Acquired 5 | . . . . . . . . . . . . . . 5 . . . . . Robots Built . | . . . . . . . . . . . . . . . . . . . . Matter . | . . . . . . . . . . . . . . . . . . . . Time . | . . . . . . . . . . . . . . . . . . . . Total Robot Build Rating . | . . . . . . . . . . . . . . . . . . . . Part Schematics Acquired 13 | . . . 1 . . . 2 . 2 . 2 . . 6 . . . . . Parts Built 3 | . . . . . . . . . 2 . 1 . . . . . . . . Matter 226 | . . . . . . . . . 124 . 102 . . . . . . . . Time 87 | . . . . . . . . . 62 . 25 . . . . . . . . Total Part Build Rating 5 | . . . . . . . . . 4 . 1 . . . . . . . . Parts Repaired . | . . . . . . . . . . . . . . . . . . . . Time . | . . . . . . . . . . . . . . . . . . . . Parts Recycled . | . . . . . . . . . . . . . . . . . . . . Recycled Matter . | . . . . . . . . . . . . . . . . . . . . Retrieved Matter . | . . . . . . . . . . . . . . . . . . . . Retrieved Components . | . . . . . . . . . . . . . . . . . . . . Parts Scanalyzed 7 | . . . 1 . . . 2 . 3 . 1 . . . . . . . . Part Schematics Acquired 6 | . . . 1 . . . 2 . 2 . 1 . . . . . . . . Parts Damaged . | . . . . . . . . . . . . . . . . . . . . Bothacking | -11 -10 -10 -9 -9 -9 -8 -8 -8 -7 -7 -7 -7 -7 -7 -6 -6 -6 -6 -6 ------------ Run | Scr Mat Min Mat Min Exi Min Mat Gar Fac Was Fac Low Low Dat Pro Fac Was Fac Ext Used RIF Installer 1 | . . . . . . . . 1 . . . . . . . . . . . Robots Hacked 13 | . . . . . . . . . 1 6 . . . . . . 6 . . Non-combat 1 | . . . . . . . . . 1 . . . . . . . . . . Combat 12 | . . . . . . . . . . 6 . . . . . . 6 . . Robot Hacks Applied 16 | . . . . . . . . . 1 7 . . . . . . 8 . . find_chute 1 | . . . . . . . . . 1 . . . . . . . . . . ignore_targets 15 | . . . . . . . . . . 7 . . . . . . 8 . . Relay Couplers Released 7 | . . . . . . . . 7 . . . . . . . . . . . Machine Destruction 7 | . . . . . . . . 7 . . . . . . . . . . . Attached 2 | . . . . . . . . . . 1 . . . . . . 1 . . Robots Rewired 3 | . . . . . . . . . . . . . . . . . . . 3 Allies Hacked . | . . . . . . . . . . . . . . . . . . . . Hacks Repelled . | . . . . . . . . . . . . . . . . . . . . Allies | -11 -10 -10 -9 -9 -9 -8 -8 -8 -7 -7 -7 -7 -7 -7 -6 -6 -6 -6 -6 -------- Run | Scr Mat Min Mat Min Exi Min Mat Gar Fac Was Fac Low Low Dat Pro Fac Was Fac Ext Total Allies 8 | . . . . . . . . . . . . . . . . . . . 8 Largest Group 5 | . . . . . . . . . . . . . . . . . . . 5 Highest-Rated Group 283 | . . . . . . . . . . . . . . . . . . . 283 Highest-Rated Ally 156 | . . . . . . . . . . . . . . . . . . . 156 Total Orders 4 | . . . . . . . . . . . . . . . . . . 4 . EXPLORE 2 | . . . . . . . . . . . . . . . . . . 2 . RETURN 2 | . . . . . . . . . . . . . . . . . . 2 . Ally Attacks 61 | . . . . . . . . . . . . . . . . . . . 61 Total Damage 1311 | . . . . . . . . . . . . . . . . . . . 1311 Kills 15 | . . . . . . . . . . . . . . . . . . . 15 Allies Corrupted 1 | . . . . . . . . . . . . . . . . . . . 1 Allies Melted . | . . . . . . . . . . . . . . . . . . . . Intel | -11 -10 -10 -9 -9 -9 -8 -8 -8 -7 -7 -7 -7 -7 -7 -6 -6 -6 -6 -6 ------- Run | Scr Mat Min Mat Min Exi Min Mat Gar Fac Was Fac Low Low Dat Pro Fac Was Fac Ext Robot Analysis Total 119 | . 2 . 1 . . . . . . . 1 . . 115 . . . . . Derelict Logs Recovered 6 | . . 1 . 1 . . . . . . . 2 1 . 1 . . . . Drone Launches 2 | . . . . . . . . . . . . . . . . . . 2 . Drone Recoveries . | . . . . . . . . . . . . . . . . . . . . Exploration | -11 -10 -10 -9 -9 -9 -8 -8 -8 -7 -7 -7 -7 -7 -7 -6 -6 -6 -6 -6 ------------- Run | Scr Mat Min Mat Min Exi Min Mat Gar Fac Was Fac Low Low Dat Pro Fac Was Fac Ext Turns Passed 21777 | 3 942 227 1130 1004 781 297 1709 1864 2247 1429 1569 1807 1240 326 682 476 947 2235 862 Spaces Moved 10263 | 3 470 111 500 508 426 133 718 872 1228 683 674 990 653 140 338 237 386 831 362 Core . | . . . . . . . . . . . . . . . . . . . . Treads 7905 | . 440 111 500 267 . . 624 483 821 418 674 990 653 140 338 237 386 823 . Legs 1631 | 3 30 . . 241 426 133 94 389 . . . . . . . . . . 315 Wheels 678 | . . . . . . . . . 407 265 . . . . . . . . 6 Hover . | . . . . . . . . . . . . . . . . . . . . Flight 49 | . . . . . . . . . . . . . . . . . . 8 41 Fastest Speed 115 | 120 120 180 160 180 180 210 180 180 115 115 180 180 180 180 180 175 175 160 120 Average Speed 177 | 120 160 180 179 180 182 210 183 196 162 154 180 180 180 184 187 178 177 179 178 Slowest Speed 760 | 120 180 180 180 240 210 210 200 360 200 180 180 200 180 200 200 192 200 760 680 Overloaded Moves . | . . . . . . . . . . . . . . . . . . . . Propulsion Burnouts . | . . . . . . . . . . . . . . . . . . . . Robots Hopped . | . . . . . . . . . . . . . . . . . . . . Cave-ins Triggered . | . . . . . . . . . . . . . . . . . . . . Exploration Rate (%) 52 | 2 59 31 39 71 88 31 62 75 35 88 12 94 68 78 57 6 93 17 37 Regions Visited 19 Branch Regions 9 Pre-discovered Areas 27 | . 1 . . . 1 . . . . . . 1 . 24 . . . . . Known Exits Taken 7 | . . . . . . . 1 . . . 1 1 1 1 1 . . 1 . Unknown Exits Taken 7 | 1 1 1 1 1 1 1 . . . . . . . . . . . . . Scrap Searched 10 | . . . . . . . . . . . . 2 8 . . . . . . Spaces Dug 33 | . . . . 2 . . . . 4 . 12 1 . . . 1 . 13 . Terrain Destroyed 294 | . . . . 39 . . 9 27 65 . 16 23 38 23 1 27 . 19 7 Melee 14 | . . . . . . . . . 4 . 9 1 . . . . . . . Projectile 57 | . . . . 3 . . 9 . 8 . 7 . 2 . 1 1 . 19 7 AOE 223 | . . . . 36 . . . 27 53 . . 22 36 23 . 26 . . . Actions | -11 -10 -10 -9 -9 -9 -8 -8 -8 -7 -7 -7 -7 -7 -7 -6 -6 -6 -6 -6 --------- Run | Scr Mat Min Mat Min Exi Min Mat Gar Fac Was Fac Low Low Dat Pro Fac Was Fac Ext Total 12664 | 2 583 128 642 568 430 140 965 978 1399 959 973 1008 704 178 362 282 547 1314 502 Wait 693 | . 22 12 6 4 . . 55 . 21 127 228 6 17 10 5 10 54 106 10 Move 10246 | 2 469 110 499 507 425 132 718 870 1228 682 673 989 652 139 337 237 385 830 362 Hop . | . . . . . . . . . . . . . . . . . . . . Pick Up 241 | . 22 . 33 8 1 2 36 7 23 26 9 . 7 2 . 6 10 31 18 Fast Attach 74 | . 2 . 4 4 . . 11 8 6 4 2 2 1 . 2 2 4 11 11 Attach 104 | . 1 . 9 2 . . 10 3 5 1 4 . 3 2 1 5 8 40 10 Detach 25 | . . . 1 1 . . 1 1 1 1 1 . . . 1 1 3 11 2 Swap 153 | . 6 . 13 9 3 . 17 7 29 12 10 6 3 5 2 6 5 13 7 Drop 275 | . 16 . 24 14 1 . 38 15 29 38 10 2 10 2 2 5 17 37 15 Fire 677 | . 45 6 53 19 . 5 79 28 46 34 18 2 11 17 12 9 61 191 41 Melee 88 | . . . . . . . . . 9 34 18 1 . 1 . . . 25 . Ram . | . . . . . . . . . . . . . . . . . . . . Kick 1 | . . . . . . 1 . . . . . . . . . . . . . Crush 16 | . . . . . . . . . . . . . . . . . . 16 . Escape Stasis 59 | . . . . . . . . 39 . . . . . . . . . 2 18 Rewire 9 | . . . . . . . . . . . . . . . . 1 . . 8 Trap 2 | . . . . . . . . . 2 . . . . . . . . . . Miscellaneous 1 | . . . . . . . . . . . . . . . . . . 1 . Route ------- -11/Scrapyard -10/Materials (discovered 3 exits: *Mat / [*Min x2]) -10/Mines -9/Materials (discovered 2 exits: *Mat / *Min) -9/Mines (discovered 3 exits: *Mat x2 / *Exi) -9/Exiles (discovered 2 exits: [*Min x2]) -8/Mines -8/Materials (discovered 4 exits: *Fac x3 / Gar) -8/Garrison (discovered 3 exits: *Fac x3) -7/Factory -7/Waste -7/Factory (discovered 2 exits: *Low x2) -7/Lower Caves (discovered 2 exits: *Low / *Zio) -7/Lower Caves (discovered 2 exits: *Fac / *Dat) -7/Data Miner -6/Proximity Caves -6/Factory -6/Waste -6/Factory -6/Extension History --------- Turn | Location | Event 1 | -11/Scrapyard | Discovered new exit (range 3) 4 | -11/Scrapyard | Entered Materials 306 | -10/Materials | Build established: Mutant 340 | -10/Materials | Discovered new exit (range 6) 676 | -10/Materials | Discovered new exit (range 10) 748 | -10/Materials | Discovered new exit (range 11) 946 | -10/Materials | Entered Mines 1155 | -10/Mines | Discovered new exit (range 8) 1173 | -10/Mines | Entered Materials 1173 | -9/Materials | Evolved 2 slots: Utility x2 1482 | -9/Materials | Build established: Hauler-Mutant 1866 | -9/Materials | Discovered new exit (range 10) 2224 | -9/Materials | Discovered new exit (range 16) 2303 | -9/Materials | Entered Mines 2356 | -9/Mines | Met a Derelict shopkeep closing up shop 2596 | -9/Mines | Discovered new exit (range 15) 2877 | -9/Mines | Discovered new exit (range 8) 3298 | -9/Mines | Deemed a non-threat by the Exiles lab entrance 3298 | -9/Mines | Discovered new exit (range 5) 3307 | -9/Mines | Entered Exiles 3334 | -9/Exiles | Discovered new exit (range 15) 3356 | -9/Exiles | Met 8R-AWN 3381 | -9/Exiles | Met EX-HEX 3464 | -9/Exiles | Met EX-DEC 3475 | -9/Exiles | Learned location of Zion (-6) 3548 | -9/Exiles | Visited The Gauntlet 3765 | -9/Exiles | Met EX-BIN 4065 | -9/Exiles | Discovered new exit (range 14) 4088 | -9/Exiles | Entered Mines 4366 | -8/Mines | Discovered new exit (range 9) 4385 | -8/Mines | Entered Materials 4385 | -8/Materials | Evolved 2 slots: Propulsion x1, Utility x1 4386 | -8/Materials | Identified exit to Factory 5250 | -8/Materials | Discovered exit to Factory (range 15) 5717 | -8/Materials | Discovered exit to Factory (range 6) 6014 | -8/Materials | Garrison activated, responded to threat 6094 | -8/Materials | Identified exit to Garrison 6094 | -8/Materials | Entered Garrison 6152 | -8/Garrison | Triggered checkpoint 6226 | -8/Garrison | Garrison Relay disabled 6670 | -8/Garrison | Triggered checkpoint 6735 | -8/Garrison | Discovered exit to Factory (range 12) 6862 | -8/Garrison | Triggered checkpoint 6945 | -8/Garrison | Discovered exit to Factory (range 14) 7074 | -8/Garrison | Triggered checkpoint 7149 | -8/Garrison | Discovered exit to Factory (range 11) 7181 | -8/Garrison | Installed Relay Interface Framework 7248 | -8/Garrison | Triggered checkpoint 7268 | -8/Garrison | Garrison Relay disabled 7958 | -8/Garrison | Entered Factory 7958 | -7/Factory | Evolved 2 slots: Utility x2 9254 | -7/Factory | Local fabrication network quarantined 9290 | -7/Factory | Fabricated Arm. Wheel? 9558 | -7/Factory | First assault squad dispatched 9770 | -7/Factory | Destroyed 8 combat bots 10205 | -7/Factory | Manually triggered Chute Trap 10205 | -7/Factory | Sucked down chute 10205 | -7/Factory | Entered Waste 10212 | -7/Waste | Spotted C-40 Crusher 10294 | -7/Waste | Spotted C-40 Crusher 10296 | -7/Waste | Spotted C-40 Crusher 10343 | -7/Waste | Spotted C-40 Crusher 10488 | -7/Waste | Destroyed C-40 Crusher 10510 | -7/Waste | Found Damper Plating 10601 | -7/Waste | Spotted C-40 Crusher 10631 | -7/Waste | Destroyed C-40 Crusher 10638 | -7/Waste | Found Damper Plating 10682 | -7/Waste | Found Damper Plating 10836 | -7/Waste | Spotted C-40 Crusher 10960 | -7/Waste | Destroyed C-40 Crusher 10986 | -7/Waste | Destroyed C-40 Crusher 10992 | -7/Waste | Destroyed C-40 Crusher 11001 | -7/Waste | Found Damper Plating 11154 | -7/Waste | Discovered new exit (range 10) 11345 | -7/Waste | Destroyed C-40 Crusher 11365 | -7/Waste | Found Damper Plating 11630 | -7/Waste | Identified exit to Factory 11634 | -7/Waste | Entered Factory 11942 | -7/Factory | Identified exit to Lower Caves 13012 | -7/Factory | Fabricated Hcp. Storage Unit (x1) 13203 | -7/Factory | Entered Lower Caves 13344 | -7/Lower Caves | A Derelict revealed a hidden shortcut to a safe place 13354 | -7/Lower Caves | Identified exit to Zion 13387 | -7/Lower Caves | Learned Factory garrison access intel 13394 | -7/Lower Caves | Learned location of Extension (-6) 14005 | -7/Lower Caves | Discovered new exit (range 9) 14023 | -7/Lower Caves | Identified exit to Lower Caves 15010 | -7/Lower Caves | Entered another Lower Caves area 15047 | -7/Lower Caves | Learned Factory non-interactive machine intel 15120 | -7/Lower Caves | Discovered new exit (range 9) 15133 | -7/Lower Caves | Identified exit to Factory 15134 | -7/Lower Caves | Encountered a Warlord checkpoint 15813 | -7/Lower Caves | Acquired the password to a Derelict Tinkerer's latest research 15825 | -7/Lower Caves | Found Prototype Special Weapon 15825 | -7/Lower Caves | Identified Molecular Deconstructor 16230 | -7/Lower Caves | Discovered new exit (range 6) 16237 | -7/Lower Caves | Identified exit to Data Miner 16250 | -7/Lower Caves | Entered Data Miner 16250 | -7/Data Miner | Discovered new exit (range 6) 16285 | -7/Data Miner | Met Data Miner 16380 | -7/Data Miner | Learned location of Section 7 (-3) 16380 | -7/Data Miner | Acquired the access code to Warlord's prototype stash 16407 | -7/Data Miner | Received God Mode back door access code from Data Miner 16456 | -7/Data Miner | Interfaced with the Data Conduit 16574 | -7/Data Miner | Identified exit to Proximity Caves 16576 | -7/Data Miner | Entered Proximity Caves 16780 | -6/Proximity Caves | Learned Factory stockpile data 17173 | -6/Proximity Caves | Attracted the attention of an 0b10 checkpoint 17231 | -6/Proximity Caves | Discovered exit to Factory (range 14) 17258 | -6/Proximity Caves | Entered Factory 17258 | -6/Factory | Evolved 2 slots: Propulsion x1, Utility x1 17260 | -6/Factory | Loaded intel: 266 machine locations 17261 | -6/Factory | Loaded intel: 219 non-interactive machine locations 17262 | -6/Factory | Loaded intel: 4 garrison access locations 17330 | -6/Factory | Discovered new exit (range 10) 17346 | -6/Factory | Identified exit to Lower Caves 17734 | -6/Factory | Sucked down chute 17734 | -6/Factory | Entered Waste 17749 | -6/Waste | EMP discharged 17818 | -6/Waste | Spotted C-40 Crusher 17849 | -6/Waste | EMP discharged 17853 | -6/Waste | Spotted C-40 Crusher 17858 | -6/Waste | Spotted C-40 Crusher 17889 | -6/Waste | Spotted C-40 Crusher 17895 | -6/Waste | Spotted C-40 Crusher 17949 | -6/Waste | EMP discharged 18013 | -6/Waste | Spotted C-40 Crusher 18049 | -6/Waste | EMP discharged 18149 | -6/Waste | EMP discharged 18249 | -6/Waste | EMP discharged 18325 | -6/Waste | Destroyed C-40 Crusher 18349 | -6/Waste | EMP discharged 18369 | -6/Waste | Destroyed C-40 Crusher 18449 | -6/Waste | EMP discharged 18454 | -6/Waste | Destroyed C-40 Crusher 18503 | -6/Waste | Destroyed C-40 Crusher 18549 | -6/Waste | EMP discharged 18575 | -6/Waste | Discovered new exit (range 10) 18591 | -6/Waste | Identified exit to Factory 18627 | -6/Waste | Destroyed C-40 Crusher 18649 | -6/Waste | EMP discharged 18662 | -6/Waste | Found Damper Plating 18681 | -6/Waste | Entered Factory 18682 | -6/Factory | Loaded intel: 267 machine locations 19055 | -6/Factory | Found Hvy. Reactive Plating 19731 | -6/Factory | First assault squad dispatched 19778 | -6/Factory | Intercept squad dispatched 19793 | -6/Factory | Spotted Tracker 19819 | -6/Factory | Destroyed Tracker 19845 | -6/Factory | Spotted Combat Programmer 19909 | -6/Factory | Destroyed Combat Programmer 20407 | -6/Factory | Intercept squad dispatched 20419 | -6/Factory | Spotted Tracker 20420 | -6/Factory | Spotted Tracker 20440 | -6/Factory | Destroyed Tracker 20478 | -6/Factory | Spotted Combat Programmer 20480 | -6/Factory | Spotted Combat Programmer 20645 | -6/Factory | Destroyed Tracker 20671 | -6/Factory | Destroyed Combat Programmer 20688 | -6/Factory | Core integrity fell below 50% 20712 | -6/Factory | Destroyed Combat Programmer 20768 | -6/Factory | Found Exp. Targeting Computer 20777 | -6/Factory | Lost 6 parts (1p4u1w) 20828 | -6/Factory | Discovered new exit (range 15) 20879 | -6/Factory | Lost 4 parts (3n1u) 20908 | -6/Factory | Identified exit to Extension 20916 | -6/Factory | Entered Extension 20917 | -6/Extension | Loaded intel: 27 machine locations 21080 | -6/Extension | Rescued A7 21266 | -6/Extension | First assault squad dispatched 21393 | -6/Extension | P-60 Hacker assimilated allied 00-S4I(h) 21400 | -6/Extension | Energy Cycler disabled 21401 | -6/Extension | Rescued a captive Derelict 21401 | -6/Extension | Rescued a captive Derelict 21401 | -6/Extension | Rescued a captive Derelict 21402 | -6/Extension | Rescued a captive Derelict 21403 | -6/Extension | Rescued a captive Derelict 21405 | -6/Extension | Rescued a captive Derelict 21407 | -6/Extension | Rescued a captive Derelict 21413 | -6/Extension | Rescued a captive Derelict 21701 | -6/Extension | Spotted B-75 Beast 21710 | -6/Extension | Spotted B-75 Beast 21733 | -6/Extension | Core integrity fell below 20% 21763 | -6/Extension | Destroyed B-75 Beast 21778 | -6/Extension | Destroyed by B-75 Beast with Magnetic Acceleration Cannon Last Messages --------------- 21736_ Knocked back. 21738_ Discarded Target Analyzer. 21738_ Adv. Heat Sink destroyed. 21746_ Carbon-fiber Leg destroyed. 21747_ Imp. Light Armor Plating destroyed. 21749_ Knocked back. 21750_ System corrupted: Mni. Assault Cannon targeting data glitched. 21755_ B-75 Beast misfires. 21756_ System corrupted: Mni. Assault Cannon targeting data glitched. 21758_ System corrupted: Energy discharge (-72). 21758_ Carbon-fiber Leg destroyed. 21763_ B-75 Beast destroyed. 21766_ Knocked back. 21769_ Flexi-carbon Leg destroyed. 21772_ Myomer Leg destroyed. 21775_ System corrupted: Component data lost. 21775_ Mni. Assault Cannon destroyed. 21775_ Lyr. Medium Armor Plating destroyed. 21775_ Imp. Deuterium Engine destroyed. 21778_ Slug penetrates B-75 Beast. Map ----- +----------------------------------------------------+ | ?????????????????????????????????????????????????? | | ######################???????????????????????????? | | # ###?????????????????????????? | | = #?????????????????????????? | | ##### # #?????????????????????????? | | ##?## % #T###?????????????????????????? | | ##### ###???????????????????????????? | | ## # ##+## #?????????????????????????????? | | #### # =!#?????????????????????????????? | | ## = %# =!!*##########????????????????????? | | # + ![%!* #????????????????????? | | # =!#######[ #????????????????????? | | # ]%#?????#= #????????????????????? | | ## !#?????# #????????????????????? | | / #########?????# ##### #????????????????????? | | ############### #???? #????????????????????? | | " % #???# #????????????????????? | | %" #???# #????????????????????T | | " %%"##??# #????????????????????? | | ################## %["##?# #????????????????????? | | ?????????????????# =% ## ?# #????????????????????? | | ?????????????????# % #? ## #????????????????????? | | ?????????????????# !%%#? # #????????????????????? | | ?????????????????#=% "#?# ; ###??????????????????? | | ?????????????????# %%###;; T"#??????????????????? | | ?????????????????# @ ""#??????????????????? | | ?????????????????# ###??????????????????? | | ?????????????????# ;#???????????????????? | | ?????????????????# ;#???????????????????? | | ?????????????????#;##;####; ; #??????????????????? | | ?????????????????### #####; ;;# ## #?????????????? | | ???????????????????##??#""*%[BB ""?""????????? | | ???????????????????????#" !%BB "?"?????????? | | ???????????????????????##$% =!R ???????????? | | ????????????????????????# % =%* ?????????? | | ????????????????????????# *=! R ?????????? | | ???????????????????????? % ??????????? | | ??????????????????????? ?????????? | | ??????????????????????? ????????? | | ?????????????????????? ?????????? | | ????????????????????? ?????????? | | ?????????????????????#### ??????????? | | ????????????????????????# ??????????? | | ????????????????????????# ????????????? | | ????????????????????????# ??????????????? | | ????????????????????????# ?????????????????? | | ?????????????????????????##"##T?"""??????????????? | | ?????????????????????????????????????????????????? | | ?????????????????????????????????????????????????? | | | +----------------------------------------------------+ Best States ------------- Heat Dissipation 91 Coolant Potential 50 Energy Generation 21 Energy Capacity 325 Matter Stores 300 Matter Capacity 300 Sight Range 16 Robot Scan Range 22 Terrain Scan Density 10 Armor Coverage 2400 Resistance: KI 40 Resistance: EM 90 Evasion (%) 40 Targeting Accuracy 20 Target Analysis 5 Core Analysis 6 Armor Integrity Analysis 50 Recoil Reduction 4 Kinecelleration 30 Item Schematics ----------------- Lrg. Storage Unit | -9/Materials | Scanalyzed Hcp. Storage Unit | -8/Materials | Scanalyzed Arm. Wheel | -8/Materials | Scanalyzed Adv. Sensor Array | -7/Factory | Scanalyzed Adv. Targeting Computer | -7/Factory | Scanalyzed Mni. Assault Cannon | -7/Factory | Scanalyzed Adv. Signal Interpreter | -7/Factory | Hacked Combat Drone Bay | -7/Data Miner | Free Lgt. Regenerative Plating | -7/Data Miner | Free Cmb. Gravmag System | -7/Data Miner | Free Triangulator | -7/Data Miner | Free Exp. Targeting Computer | -7/Data Miner | Free Exp. Transmission Jammer | -7/Data Miner | Free Robot Schematics ------------------ S-27 Virus | -7/Data Miner | Free G-50 Soldier | -7/Data Miner | Free G-67 Veteran | -7/Data Miner | Free I-36 Angel | -7/Data Miner | Free I-47 Archangel | -7/Data Miner | Free Fabricated ------------ Arm. Wheel | x2 | -7/Factory Hcp. Storage Unit | x1 | -7/Factory Alien Tech Used ----------------- None Achievements -------------- Below Deconstruction Wheee! Challenges ------------ None Game ------ Seed AntigravCompactBiocell Manual? 0 Play Time 03:36:16 Cumulative 195.1 hours Start 2020.07.05 @ 13:23:19 End 2020.07.05 @ 19:27:59 Sessions 3 Manual Loads 0 Difficulty Rogue Special Mode None Game No. 106 Rogue 104 Adventurer 1 Explorer 1 Win Type - Total 2 Types 2/0/0/0/0/0/0 Lore% 63 Gallery% 76 Achievement% 56 Wizard Run 0 Options --------- ASCII 0 Keyboard 1 Movement Numpad Keybinds 1 Fullscreen 2 Font 24/Terminus Map View 76x50 Tactical HUD 1 Map Filters NONE Filters NONE Steam 1 RUN: 36b16f6e-2cbc-4fc5-bd67-d2ae49285760